bitfinex/quotes_SOLUSD_20220228
["timestamp","ask_amount","ask_price","bid_price","bid_amount"]
[1646050727917,1.80936779,90.634,90.534,2.28633775]
[1646050728117,177.15,90.635,90.534,2.28633775]
[1646050728318,177.15,90.633,90.534,2.28633775]
[1646050728918,1.60865159,90.632,90.534,2.28633775]
[1646050729319,1.60865159,90.632,90.533,49.73050158]
[1646050729722,1.60865159,90.632,90.534,2.41290042]
[1646050730946,2.74678921,90.631,90.533,49.73050158]
[1646050731124,2.74678921,90.631,90.534,2.89391282]
[1646050731727,48.5163,90.634,90.535,2.74678921]
[1646050731926,48.5163,90.634,90.536,6.0]
[1646050732125,48.5163,90.634,90.55,15.9]
[1646050732326,110.7,90.631,90.552,50.26546634]
[1646050732527,177.15,90.625,90.552,50.26546634]
[1646050732927,1.5020253,90.624,90.552,50.26546634]
[1646050734430,111.59835982,90.623,90.517,2.74678921]
[1646050734631,177.15,90.621,90.504,16.156]
[1646050734829,1.52464526,90.618,90.504,16.156]
[1646050735032,4.416,90.617,90.504,16.156]
[1646050735430,4.416,90.617,90.512,52.52534107]
[1646050735631,2.74678921,90.616,90.513,2.99687492]
[1646050735931,4.416,90.615,90.513,2.99687492]
[1646050736631,2.74678921,90.616,90.513,2.99687492]
[1646050736830,2.74678921,90.616,90.515,2.92108156]
[1646050737032,1.52464526,90.618,90.515,2.92108156]
[1646050738331,1.52464526,90.618,90.514,22.9809]
[1646050738550,1.71784663,90.616,90.514,22.9809]
[1646050739253,177.15,90.614,90.514,22.9809]
[1646050739452,1.46021704,90.613,90.514,22.9809]
[1646050739652,1.46021704,90.613,90.515,2.74678921]
[1646050739854,66.45,90.614,90.53,15.9]
[1646050740052,66.45,90.625,90.531,54.22337522]
[1646050740253,66.45,90.633,90.531,56.97016443]
[1646050740456,66.45,90.625,90.532,3.01138046]
[1646050740655,66.45,90.625,90.532,5.75816967]
[1646050740955,66.45,90.625,90.533,5.52601509]
[1646050741355,110.7,90.627,90.534,2.74678921]
[1646050741557,110.7,90.622,90.534,2.74678921]
[1646050741757,66.45,90.626,90.534,2.74678921]
[1646050741958,177.15,90.626,90.534,2.74678921]
[1646050742162,110.7,90.622,90.534,2.74678921]
[1646050742459,110.7,90.614,90.533,2.77922588]
[1646050748663,110.7,90.608,90.532,24.9646]
[1646050748863,110.7,90.604,90.532,24.9646]
[1646050751265,66.45,90.605,90.532,24.9646]
[1646050751964,110.7,90.604,90.532,24.9646]
[1646050755974,66.45,90.613,90.532,24.9646]
[1646050756168,28.5179,90.634,90.533,3.04511809]
[1646050756367,24.1019,90.634,90.533,32.51010257]
[1646050756566,24.1019,90.634,90.534,30.84675399]
[1646050756766,24.1019,90.634,90.535,2.8431976]
[1646050756967,24.1019,90.634,90.537,110.7]
[1646050757168,24.1019,90.634,90.536,6.0]
[1646050757169,115.115,90.662,90.54,2.4954759]
[1646050757367,115.115,90.662,90.536,6.0]
[1646050757368,27.5154,90.662,90.551,110.7]
[1646050757568,23.1004,90.662,90.553,110.7]
[1646050757773,23.1004,90.662,90.555,2.40210845]
[1646050757968,23.1004,90.662,90.57,15.9]
[1646050758168,23.1004,90.662,90.572,62.29426728]
[1646050758369,23.1004,90.662,90.573,2.44057212]
[1646050758774,22.8628,90.676,90.573,2.44057212]
[1646050758973,23.606,90.698,90.575,110.7]
[1646050759177,66.45,90.715,90.576,2.64504524]
[1646050759372,66.45,90.713,90.593,110.7]
[1646050759573,66.45,90.709,90.595,3.09235295]
[1646050759871,66.45,90.709,90.597,110.7]
[1646050760073,66.45,90.709,90.61,15.9]
[1646050760276,66.45,90.709,90.611,89.62527151]
[1646050760473,66.45,90.709,90.612,2.57647456]
[1646050760672,66.45,90.713,90.612,10.48647456]
[1646050760875,66.45,90.705,90.612,10.48647456]
[1646050761376,48.1218,90.714,90.613,110.7]
[1646050761574,48.1218,90.714,90.614,2.43021292]
[1646050761776,110.7,90.713,90.614,2.43021292]
[1646050762076,48.1218,90.714,90.614,2.43021292]
[1646050762077,50.86858921,90.714,90.614,2.43021292]
[1646050762277,110.7,90.713,90.614,2.43021292]
[1646050762479,110.7,90.709,90.614,2.43021292]
[1646050762678,110.7,90.699,90.611,89.62527151]
[1646050762877,177.15,90.686,90.611,89.62527151]
[1646050763578,4.412,90.707,90.612,2.74678921]
[1646050763779,47.1247,90.747,90.614,110.7]
[1646050763981,47.1247,90.747,90.615,2.71550746]
[1646050764179,1.40292386,90.746,90.616,6.0]
[1646050764379,4.411,90.745,90.63,15.9]
[1646050764581,66.45,90.739,90.631,55.76989073]
[1646050764780,66.45,90.717,90.631,55.76989073]
[1646050764979,110.7,90.704,90.631,55.76989073]
[1646050765179,66.45,90.705,90.631,55.76989073]
[1646050766279,47.3075,90.714,90.632,2.36718709]
[1646050766679,110.7,90.713,90.632,2.36718709]
[1646050766888,47.3075,90.714,90.631,72.37069073]
[1646050766889,110.7,90.703,90.631,55.76989073]
[1646050767081,66.45,90.692,90.631,55.76989073]
[1646050767280,177.15,90.676,90.631,55.76989073]
[1646050768085,66.45,90.695,90.631,55.76989073]
[1646050768286,1.76345406,90.708,90.631,55.76989073]
[1646050768685,4.41,90.707,90.631,55.76989073]
[1646050769088,67.34835982,90.713,90.631,55.76989073]
[1646050769089,66.45,90.709,90.631,55.76989073]
[1646050769287,66.45,90.705,90.631,55.76989073]
[1646050769788,67.94327445,90.705,90.631,55.76989073]
[1646050769986,66.45,90.703,90.631,55.76989073]
[1646050770190,66.45,90.697,90.631,55.76989073]
[1646050770388,66.45,90.685,90.631,55.76989073]
[1646050771188,66.45,90.711,90.631,55.76989073]
[1646050771390,66.45,90.695,90.631,55.76989073]
[1646050771989,1.7467899,90.722,90.631,55.76989073]
[1646050772204,110.7,90.716,90.631,55.76989073]
[1646050772405,110.7,90.722,90.632,2.39313434]
[1646050772605,110.7,90.713,90.632,2.39313434]
[1646050773205,66.45,90.706,90.631,55.76989073]
[1646050773406,177.15,90.706,90.631,55.76989073]
[1646050774509,178.77165537,90.706,90.631,55.76989073]
[1646050774707,1.59691759,90.705,90.631,55.76989073]
[1646050774908,4.41,90.704,90.631,55.76989073]
[1646050775407,1.59691759,90.705,90.631,55.76989073]
[1646050777211,177.15,90.706,90.631,55.76989073]
[1646050778511,4.41,90.717,90.631,55.76989073]
[1646050778512,66.45,90.705,90.631,63.25989073]
[1646050778712,27.4683,90.725,90.632,2.30491736]
[1646050778915,23.0583,90.725,90.632,2.30491736]
[1646050779514,110.7,90.724,90.632,2.30491736]
[1646050780116,110.7,90.719,90.632,2.30491736]
[1646050781716,16.389,90.72,90.632,2.30491736]
[1646050781919,16.389,90.72,90.633,2.74678921]
[1646050783319,2.74678921,90.737,90.635,40.0]
[1646050783519,1.69558066,90.795,90.635,150.7]
[1646050783719,66.45,90.796,90.651,110.7]
[1646050783920,4.409,90.794,90.66,198.81]
[1646050784120,4.409,90.794,90.68,198.81]
[1646050784320,66.45,90.822,90.691,110.7]
[1646050784522,4.684e-05,90.783,90.701,110.7]
[1646050784719,4.684e-05,90.783,90.703,110.7]
[1646050784919,4.684e-05,90.783,90.711,113.1172389]
[1646050785119,4.684e-05,90.783,90.712,2.69794504]
[1646050785318,4.684e-05,90.783,90.714,110.7]
[1646050785520,4.684e-05,90.783,90.715,7.49133275]
[1646050785722,4.684e-05,90.783,90.73,15.9]
[1646050786421,4.684e-05,90.783,90.731,2.42961924]
[1646050786621,4.684e-05,90.783,90.732,3.01741722]
[1646050786821,4.684e-05,90.783,90.732,7.42441722]
[1646050787221,4.684e-05,90.783,90.732,3.01741722]
[1646050787523,4.684e-05,90.783,90.734,110.7]
[1646050787722,4.684e-05,90.783,90.735,6.78794489]
[1646050788023,4.684e-05,90.783,90.737,2.5876196]
[1646050788223,16.3589,90.914,90.771,110.7]
[1646050788523,16.3589,90.914,90.773,115.0108]
[1646050788721,16.3589,90.914,90.783,5.0]
[1646050788922,47.47974484,90.916,90.82,198.81]
[1646050789123,47.47974484,90.916,90.83,15.9]
[1646050789525,47.47974484,90.916,90.831,8.47245248]
[1646050790023,47.47974484,90.916,90.832,2.74678921]
[1646050790223,15.9,90.98,90.832,2.74678921]
[1646050790424,1.3656788,90.979,90.833,6.0]
[1646050790624,4.4,90.978,90.834,115.1]
[1646050790825,5.93150119,90.981,90.841,2.97318751]
[1646050791027,5.93150119,90.981,90.85,15.9]
[1646050791223,58.42950853,90.98,90.851,2.3767818]
[1646050791424,6.0562977,90.979,90.851,2.3767818]
[1646050791823,6.0562977,90.979,90.852,2.74678921]
[1646050792023,1.6572977,90.979,90.853,4.399]
[1646050792226,4.399,90.978,90.851,2.3767818]
[1646050792425,4.399,90.978,90.853,2.74678921]
[1646050792626,1.69413146,90.979,90.854,4.399]
[1646050793026,1.69413146,90.979,90.855,2.74678921]
[1646050793226,1.69413146,90.979,90.87,15.9]
[1646050793526,1.6482467,90.979,90.871,7.32016089]
[1646050793725,1.6482467,90.979,90.871,6.64578921]
[1646050793925,1.6482467,90.979,90.871,2.74678921]
[1646050794128,1.6482467,90.979,90.872,4.399]
[1646050794129,1.63654599,90.979,90.872,4.399]
[1646050794326,1.63654599,90.979,90.873,6.0]
[1646050794728,4.399,90.978,90.873,6.0]
[1646050795026,66.45,90.977,90.87,15.9]
[1646050795227,66.45,90.975,90.87,15.9]
[1646050795426,4.399,90.974,90.87,15.9]
[1646050795627,4.399,90.979,90.87,15.9]
[1646050795827,66.45,90.978,90.87,15.9]
[1646050796029,66.45,90.976,90.87,15.9]
[1646050796229,66.45,90.974,90.87,15.9]
[1646050796630,66.45,90.972,90.87,15.9]
[1646050796829,66.45,90.97,90.87,15.9]
[1646050797032,1.83670125,90.969,90.87,15.9]
[1646050797631,4.399,90.968,90.87,15.9]
[1646050797830,58.42950853,90.98,90.871,5.444699]
[1646050798030,58.42950853,90.98,90.871,2.74678921]
[1646050798031,1.38164387,90.979,90.871,2.74678921]
[1646050798230,1.38164387,90.979,90.87,15.9]
[1646050798431,1.38164387,90.979,90.867,16.7659]
[1646050798631,4.399,90.978,90.88,13.23]
[1646050798832,66.45,90.977,90.86,4.399]
[1646050799031,66.45,90.969,90.86,4.399]
[1646050799232,66.45,90.958,90.837,2.69011058]
[1646050799431,1.68949854,90.957,90.84,13.23]
[1646050799833,66.45,90.956,90.84,13.23]
[1646050800033,1.87294772,90.955,90.84,13.23]
[1646050801334,1.87294772,90.955,90.852,2.74678921]
[1646050802135,1.87294772,90.955,90.852,5.46947225]
[1646050802536,1.87294772,90.955,90.853,2.74678921]
[1646050805137,1.87294772,90.955,90.854,4.4]
[1646050805338,1.87294772,90.955,90.855,3.10915869]
[1646050805640,59.66295827,90.959,90.87,13.23]
[1646050805840,59.66295827,90.959,90.87,20.36]
[1646050806139,59.66295827,90.959,90.871,36.81685337]
[1646050806338,59.66295827,90.959,90.872,8.62713845]
[1646050806538,59.66295827,90.959,90.872,5.37392766]
[1646050806738,59.66295827,90.959,90.873,2.74678921]
[1646050808042,66.45,90.958,90.873,2.74678921]
[1646050808244,66.45,90.958,90.87,13.23]
[1646050808442,66.45,90.956,90.842,2.74678921]
[1646050808642,1.51371806,90.955,90.85,13.23]
[1646050808842,1.51371806,90.955,90.852,2.74678921]
[1646050809042,1.51371806,90.955,90.852,5.67294836]
[1646050809243,66.45,90.956,90.853,115.1]
[1646050809442,66.45,90.956,90.854,2.50785432]
[1646050809642,1.69657534,90.955,90.854,2.50785432]
[1646050809842,1.69657534,90.955,90.854,5.25464353]
[1646050810045,1.69657534,90.955,90.855,2.74678921]
[1646050810443,1.69657534,90.955,90.85,13.23]
[1646050810444,4.4,90.954,90.85,13.23]
[1646050810843,4.4,90.954,90.852,2.74678921]
[1646050811042,1.69657534,90.955,90.852,2.74678921]
[1646050812247,4.4,90.954,90.852,2.74678921]
[1646050812448,1.69657534,90.955,90.852,2.74678921]
[1646050812650,1.69657534,90.955,90.85,13.23]
[1646050812849,1.69657534,90.955,90.852,8.68154566]
[1646050813049,1.69657534,90.955,90.853,34.83329988]
[1646050813249,1.69657534,90.955,90.854,2.88359862]
[1646050813466,1.69657534,90.955,90.854,2.74678921]
[1646050813665,4.4,90.954,90.854,2.74678921]
[1646050813867,1.4874827,90.948,90.837,2.74678921]
[1646050814069,4.4,90.947,90.82,16.3925]
[1646050814464,1.4874827,90.948,90.821,5.3690573]
[1646050814965,1.4874827,90.948,90.823,2.83290785]
[1646050815167,4.401,90.947,90.824,4.401]
[1646050815465,8.65,90.947,90.824,7.14778921]
[1646050815664,8.65,90.947,90.822,24.1866]
[1646050815665,53.96809641,90.945,90.822,24.1866]
[1646050815865,68.13013919,90.939,90.822,24.1866]
[1646050816064,6.05965252,90.938,90.822,24.1866]
[1646050816268,1.4549747,90.936,90.823,2.80124274]
[1646050816466,1.4549747,90.936,90.823,145.20710221]
[1646050816665,1.4549747,90.936,90.824,33.38451827]
[1646050816865,1.4549747,90.936,90.825,2.93351906]
[1646050817067,1.4549747,90.936,90.83,13.23]
[1646050817265,66.45,90.935,90.83,13.23]
[1646050817465,1.55061234,90.934,90.83,13.23]
[1646050818271,1.61913671,90.933,90.83,13.23]
[1646050818971,1.61913671,90.933,90.809,43.00257532]
[1646050818972,66.45,90.932,90.809,27.37710221]
[1646050819168,66.45,90.932,90.802,2.54388481]
[1646050819169,138.84256991,90.93,90.802,2.54388481]
[1646050819369,66.45,90.928,90.81,13.23]
[1646050819570,1.39077467,90.927,90.821,2.46826122]
[1646050819872,1.39077467,90.927,90.822,4.401]
[1646050820069,1.39077467,90.927,90.821,2.46826122]
[1646050820273,1.39077467,90.927,90.82,29.6225]
[1646050820470,4.401,90.926,90.82,29.6225]
[1646050820669,66.45,90.925,90.82,29.6225]
[1646050820871,1.5130817,90.924,90.82,29.6225]
[1646050821069,1.5130817,90.924,90.82,13.23]
[1646050821470,4.401,90.923,90.821,2.74678921]
[1646050821670,1.69183016,90.929,90.821,2.74678921]
[1646050821870,4.401,90.928,90.82,13.23]
[1646050822069,1.69183016,90.929,90.82,13.23]
[1646050822272,1.69183016,90.929,90.821,22.5045]
[1646050822469,68.14183016,90.929,90.821,22.5045]
[1646050822670,1.49876523,90.928,90.821,22.5045]
[1646050822874,4.401,90.927,90.821,22.5045]
[1646050823673,4.401,90.927,90.791,2.74678921]
[1646050823972,1.79835727,90.924,90.776,24.489]
[1646050824171,66.45,90.907,90.776,24.489]
[1646050824372,66.45,90.899,90.776,24.489]
[1646050824571,1.57503514,90.896,90.776,24.489]
[1646050824772,47.48129867,90.894,90.776,24.489]
[1646050824973,1.69905838,90.892,90.776,24.489]
[1646050825172,4.402,90.891,90.777,2.99369876]
[1646050825374,1.69905838,90.892,90.778,47.5323]
[1646050825571,1.69905838,90.892,90.779,2.39384399]
[1646050825771,4.402,90.891,90.779,2.39384399]
[1646050825971,4.402,90.891,90.778,47.5323]
[1646050825972,66.45,90.89,90.778,47.5323]
[1646050826172,66.45,90.888,90.778,47.5323]
[1646050826372,66.45,90.886,90.778,47.5323]
[1646050826571,66.45,90.884,90.778,47.5323]
[1646050826772,1.79753044,90.881,90.778,47.5323]
[1646050826972,66.45,90.877,90.778,47.5323]
[1646050827172,4.402,90.876,90.745,2.74678921]
[1646050827373,1.58836999,90.874,90.75,13.23]
[1646050827572,66.45,90.869,90.74,13.23]
[1646050827773,1.3625721,90.868,90.74,13.23]
[1646050827974,4.405,90.867,90.741,2.74678921]
[1646050828171,4.405,90.867,90.741,5.2631484]
[1646050828373,4.405,90.867,90.742,4.405]
[1646050828572,67.8125721,90.868,90.742,53.73125846]
[1646050828772,1.56964321,90.867,90.743,2.77914511]
[1646050829074,1.56964321,90.867,90.744,7.26191418]
[1646050829272,4.405,90.866,90.744,2.74678921]
[1646050830073,4.405,90.866,90.744,5.3159022]
[1646050830471,4.405,90.866,90.745,32.98307947]
[1646050830674,1.56964321,90.867,90.746,2.41072218]
[1646050831371,4.404,90.866,90.746,2.41072218]
[1646050832173,4.404,90.866,90.747,30.12389142]
[1646050832373,4.404,90.866,90.748,2.76666371]
[1646050832574,4.404,90.866,90.748,5.51345292]
[1646050832976,4.404,90.866,90.748,30.12389142]
[1646050833177,4.404,90.866,90.749,2.59265559]
[1646050833374,4.404,90.866,90.75,13.23]
[1646050835179,1.56964321,90.867,90.75,13.23]
[1646050835379,4.404,90.866,90.751,2.74678921]
[1646050835577,4.404,90.866,90.751,30.12389142]
[1646050835781,66.45,90.875,90.752,142.48110221]
[1646050835981,66.45,90.875,90.753,2.55541318]
[1646050836279,66.45,90.875,90.755,2.5025934]
[1646050836679,66.45,90.875,90.757,2.55393424]
[1646050836879,66.45,90.875,90.77,13.23]
[1646050837080,66.45,90.875,90.772,2.85688804]
[1646050837681,66.45,90.875,90.773,2.74678921]
[1646050838083,113.5509,90.876,90.773,116.36870731]
[1646050838285,66.45,90.876,90.774,31.78110221]
[1646050838482,66.45,90.876,90.775,2.25036701]
[1646050838683,66.45,90.876,90.79,13.23]
[1646050839084,55.59148046,90.878,90.791,2.74678921]
[1646050839282,55.59148046,90.878,90.791,5.77085292]
[1646050839482,55.59148046,90.878,90.793,3.01572536]
[1646050839883,55.59148046,90.878,90.794,6.0]
[1646050840086,66.45,90.877,90.794,8.74678921]
[1646050840283,66.45,90.877,90.795,2.74678921]
[1646050840284,110.7,90.876,90.795,2.74678921]
[1646050840484,110.7,90.868,90.8,13.23]
[1646050840687,44.92667374,90.858,90.8,13.23]
[1646050840890,66.45,90.857,90.8,13.23]
[1646050841087,44.92667374,90.858,90.8,13.23]
[1646050842286,66.45,90.857,90.8,13.23]
[1646050843086,4.402,90.895,90.8,13.23]
[1646050843287,66.45,90.888,90.8,13.23]
[1646050843488,110.7,90.885,90.8,13.23]
[1646050843686,110.7,90.875,90.8,13.23]
[1646050843887,110.7,90.871,90.8,13.23]
[1646050844088,110.7,90.867,90.8,13.23]
[1646050844288,66.45,90.858,90.8,13.23]
[1646050844988,110.7,90.849,90.8,13.23]
[1646050845189,66.45,90.848,90.8,13.23]
[1646050845389,42.68991347,90.85,90.8,13.23]
[1646050847988,4.404,90.905,90.8,13.23]
[1646050848190,5.8924522,90.919,90.801,24.3337]
[1646050848390,5.8924522,90.919,90.802,2.64430284]
[1646050848591,66.45,90.897,90.802,2.64430284]
[1646050848788,66.45,90.897,90.801,24.3337]
[1646050848789,68.30167297,90.897,90.803,23.6109]
[1646050848989,66.45,90.895,90.804,2.52813849]
[1646050850690,66.45,90.891,90.804,2.52813849]
[1646050850891,177.15,90.889,90.804,2.52813849]
[1646050851292,66.45,90.889,90.804,2.52813849]
[1646050851892,66.45,90.895,90.804,2.52813849]
[1646050852092,110.7,90.888,90.804,2.52813849]
[1646050852293,177.15,90.886,90.804,2.52813849]
[1646050852593,177.15,90.886,90.803,23.6109]
[1646050854192,1.74762993,90.885,90.803,23.6109]
[1646050854395,4.402,90.884,90.801,24.3337]
[1646050854994,1.74762993,90.885,90.801,24.3337]
[1646050855195,4.402,90.884,90.801,24.3337]
[1646050855395,1.74762993,90.885,90.801,24.3337]
[1646050855794,4.402,90.884,90.801,24.3337]
[1646050856797,4.402,90.884,90.781,24.332]
[1646050856996,177.15,90.883,90.781,24.332]
[1646050857197,110.7,90.867,90.781,24.332]
[1646050857396,110.7,90.853,90.781,24.332]
[1646050857597,110.7,90.835,90.781,24.332]
[1646050857797,110.7,90.839,90.781,24.332]
[1646050858000,1.68800656,90.866,90.781,24.332]
[1646050858197,66.45,90.869,90.781,24.332]
[1646050858398,66.45,90.869,90.782,2.9577119]
[1646050858798,66.45,90.867,90.782,2.9577119]
[1646050858997,177.15,90.867,90.782,2.9577119]
[1646050859399,1.69372106,90.866,90.781,24.332]
[1646050859998,1.80178742,90.866,90.781,24.332]
[1646050860200,4.404,90.865,90.781,24.332]
[1646050861099,66.45,90.858,90.741,48.3042]
[1646050861303,110.7,90.853,90.741,48.3042]
[1646050861500,66.45,90.842,90.741,48.3042]
[1646050861701,110.7,90.833,90.741,48.3042]
[1646050861899,66.45,90.818,90.741,48.3042]
[1646050862101,66.45,90.81,90.741,48.3042]
[1646050862320,66.45,90.798,90.741,48.3042]
[1646050862521,110.7,90.795,90.741,48.3042]
[1646050862720,110.7,90.789,90.741,48.3042]
[1646050862922,110.7,90.785,90.741,48.3042]
[1646050863120,110.7,90.783,90.741,48.3042]
[1646050863924,110.7,90.783,90.713,23.6687]
[1646050864124,110.7,90.783,90.714,2.83522275]
[1646050864724,110.7,90.779,90.714,2.83522275]
[1646050864923,110.7,90.775,90.713,23.6687]
[1646050865326,110.7,90.775,90.702,2.38386851]
[1646050865527,66.45,90.776,90.702,2.38386851]
[1646050865724,66.45,90.776,90.703,54.60936844]
[1646050865925,66.45,90.778,90.704,2.36118724]
[1646050866128,66.45,90.778,90.705,2.89834619]
[1646050866727,23.274,90.812,90.71,15.87]
[1646050866929,23.274,90.812,90.711,2.60225596]
[1646050867127,23.274,90.812,90.711,59.95841361]
[1646050867326,23.274,90.812,90.712,4.407]
[1646050867526,23.274,90.812,90.713,24.0601]
[1646050867527,110.7,90.811,90.713,24.0601]
[1646050867728,66.45,90.808,90.714,2.88092544]
[1646050868128,66.45,90.808,90.715,29.32611057]
[1646050868330,66.45,90.808,90.72,15.87]
[1646050868529,66.45,90.808,90.721,2.70077522]
[1646050868728,66.45,90.806,90.721,2.70077522]
[1646050869731,66.45,90.807,90.721,2.70077522]
[1646050870130,177.15,90.806,90.721,2.70077522]
[1646050871332,177.15,90.806,90.721,19.22217522]
[1646050871733,177.15,90.806,90.722,2.30843341]
[1646050872934,1.74138538,90.805,90.72,15.87]
[1646050873937,177.15,90.806,90.721,2.49077274]
[1646050875841,1.52094588,90.805,90.72,15.87]
[1646050877242,177.15,90.806,90.721,2.49729746]
[1646050877443,177.15,90.806,90.72,15.87]
[1646050877640,177.15,90.804,90.713,24.0601]
[1646050877841,44.80153096,90.81,90.713,24.0601]
[1646050877842,177.15,90.802,90.713,24.0601]
[1646050878040,177.15,90.8,90.713,24.0601]
[1646050878242,1.52285361,90.799,90.713,24.0601]
[1646050881346,4.407,90.798,90.713,24.0601]
[1646050881745,4.407,90.798,90.672,2.5505176]
[1646050881946,4.407,90.798,90.673,47.4207]
[1646050881947,49.81436372,90.795,90.673,47.4207]
[1646050882245,1.46348125,90.793,90.673,47.4207]
[1646050882445,177.15,90.779,90.673,47.4207]
[1646050882646,177.15,90.775,90.673,47.4207]
[1646050882848,177.15,90.773,90.673,47.4207]
[1646050883045,5.83038155,90.774,90.673,47.4207]
[1646050883046,177.15,90.769,90.673,47.4207]
[1646050883245,177.15,90.767,90.673,47.4207]
[1646050883445,1.66203848,90.766,90.673,47.4207]
[1646050886451,4.409,90.765,90.673,47.4207]
[1646050887353,4.409,90.765,90.6,23.04412286]
[1646050887555,177.15,90.764,90.61,15.87]
[1646050887753,110.7,90.749,90.612,11.52435532]
[1646050887954,110.7,90.735,90.616,29.37724237]
[1646050888154,177.15,90.719,90.617,2.51987604]
[1646050888354,1.64370611,90.718,90.619,2.81680342]
[1646050888571,4.41,90.717,90.619,2.81680342]
[1646050889273,1.64370611,90.718,90.619,2.81680342]
[1646050889678,4.41,90.717,90.619,2.81680342]
[1646050890475,1.64370611,90.718,90.619,2.81680342]
[1646050892480,4.41,90.717,90.618,24.5835]
[1646050894784,4.41,90.717,90.619,2.69694234]
[1646050894982,1.64370611,90.718,90.619,2.69694234]
[1646050895184,177.15,90.719,90.619,2.69694234]
[1646050895384,177.15,90.719,90.62,15.87]
[1646050895582,177.15,90.719,90.621,3.08269511]
[1646050895782,177.15,90.719,90.622,2.68315384]
[1646050895983,177.15,90.719,90.622,27.16236021]
[1646050896182,56.63445974,90.728,90.622,27.16236021]
[1646050896183,4.41,90.75,90.623,110.7]
[1646050896387,26.05128277,90.768,90.625,110.7]
[1646050896583,24.3251,90.768,90.631,110.7]
[1646050896784,77.6454,90.774,90.641,110.7]
[1646050897085,59.59978524,90.79,90.644,2.67220686]
[1646050897286,110.7,90.783,90.647,2.78635696]
[1646050897484,177.15,90.77,90.647,2.78635696]
[1646050897783,56.08233715,90.769,90.661,110.7]
[1646050897984,56.08233715,90.769,90.662,47.6489]
[1646050898185,112.1165084,90.809,90.663,8.41980155]
[1646050898385,110.7,90.795,90.664,23.6675]
[1646050898586,110.7,90.779,90.665,9.03646911]
[1646050898787,177.15,90.77,90.665,30.47920637]
[1646050898986,177.15,90.77,90.68,15.87]
[1646050899187,66.45,90.768,90.681,32.66618575]
[1646050899386,48.86510304,90.769,90.682,2.89024519]
[1646050899588,48.86510304,90.769,90.683,6.0]
[1646050900187,66.45,90.786,90.684,110.7]
[1646050900388,66.45,90.809,90.687,3.10982291]
[1646050900588,110.7,90.802,90.7,15.87]
[1646050900890,66.45,90.801,90.701,2.27699765]
[1646050901087,66.45,90.799,90.702,46.5602]
[1646050901288,66.45,90.799,90.703,2.3729926]
[1646050901687,66.45,90.799,90.704,6.0]
[1646050902290,66.45,90.799,90.705,110.7]
[1646050902588,46.2065383,90.8,90.708,2.30731029]
[1646050902790,46.2065383,90.8,90.72,15.87]
[1646050903088,46.2065383,90.8,90.721,9.12459941]
[1646050903693,4.407,90.827,90.721,9.12459941]
[1646050903890,66.45,90.837,90.723,2.80499475]
[1646050904092,66.45,90.837,90.725,110.7]
[1646050904292,66.45,90.837,90.726,110.7]
[1646050904493,66.45,90.837,90.74,15.87]
[1646050904691,127.03603394,90.836,90.75,15.87]
[1646050904895,127.03603394,90.836,90.751,8.98183166]
[1646050905493,127.03603394,90.836,90.752,24.2167]
[1646050905794,1.52172074,90.861,90.753,8.9740252]
[1646050905993,4.405,90.877,90.754,110.7]
[1646050906192,66.45,90.877,90.755,8.54961442]
[1646050906394,66.45,90.877,90.756,6.0]
[1646050906593,110.7,90.87,90.77,15.87]
[1646050906793,76.9318,90.878,90.77,15.87]
[1646050906794,66.45,90.839,90.77,15.87]
[1646050907396,54.47081265,90.841,90.77,15.87]